fUST/lending_fUST_20250730
["ID","MTS","AMOUNT","RATE_DAILY","PERIOD"]
[376189894,1753887051828,-204.0,0.00024,3]
[376189896,1753887051837,-160.0,0.00024,7]
[376189898,1753887051847,-160.0,0.00024,7]
[376189900,1753887051855,-160.0,0.00024,10]
[376189902,1753887051864,-231.43925844,0.00024,7]
[376189904,1753887051873,-160.0,0.00024,7]
[376189906,1753887051883,-151.0,0.00024,6]
[376189908,1753887051892,-2391.75,0.00024003,7]
[376189910,1753887051903,-299.3601861,0.00024003,10]
[376189912,1753887051913,-5000.0,0.00024016,3]
[376189914,1753887051923,-1101.83,0.00024022,2]
[376189916,1753887051932,-460.0,0.00024022,2]
[376189918,1753887051943,-592.06,0.00024022,2]
[376189920,1753887051952,-1058.94,0.00024022,2]
[376189922,1753887051961,-200.0,0.00024052,15]
[376189924,1753887051971,-200.0,0.00024052,15]
[376189926,1753887051982,-200.0,0.00024052,15]
[376189928,1753887051992,-200.0,0.00024052,15]
[376189930,1753887052005,-200.0,0.00024052,15]
[376189932,1753887052014,-200.0,0.00024052,15]
[376189933,1753887052023,-200.0,0.00024052,15]
[376189935,1753887052033,-151.0,0.00024055,7]
[376189937,1753887052043,-192.027042,0.00024055,7]
[376189939,1753887052053,-302.76,0.00024094,2]
[376189940,1753887052063,-460.0,0.00024094,2]
[376189941,1753887052073,-2391.75,0.00024103,7]
[376189942,1753887052083,-550.29,0.00024108,2]
[376189943,1753887052092,-685.88,0.00024108,2]
[376189944,1753887052098,-1500.0,0.00024153,2]
[376189945,1753887052107,-417.72322748,0.0002416,2]
[376189946,1753887052117,-1500.0,0.0002416,2]
[376189947,1753887052126,-393.65142561,0.0002416,2]
[376189948,1753887052136,-153.0,0.00024168,2]
[376189949,1753887052146,-153.0,0.00024168,2]
[376189950,1753887052155,-153.0,0.00024168,2]
[376189951,1753887052164,-153.0,0.00024168,2]
[376189952,1753887052174,-153.0,0.00024168,2]
[376189953,1753887052183,-153.0,0.00024168,2]
[376189954,1753887052197,-153.0,0.00024168,2]
[376189955,1753887052207,-153.0,0.00024168,2]
[376189956,1753887052216,-153.0,0.00024168,2]
[376189957,1753887052225,-2391.75,0.00024203,7]
[376189958,1753887052235,-299.3601861,0.0002421,10]
[376189959,1753887052245,-1000.0,0.00024221,2]
[376189960,1753887052261,-1000.0,0.00024221,2]
[376189961,1753887052271,-294.0198304,0.00024221,2]
[376189962,1753887052280,-660.0,0.00024222,2]
[376189963,1753887052289,-1141.11,0.00024232,2]
[376189964,1753887052299,-543.82,0.00024232,2]
[376189965,1753887052309,-631.71,0.00024232,2]
[376189966,1753887052318,-460.0,0.00024232,2]
[376189967,1753887052328,-1053.74,0.00024232,2]
[376189968,1753887052338,-460.0,0.00024232,2]
[376189969,1753887052347,-1039.18,0.00024259,2]
[376189970,1753887052357,-537.0,0.00024274,2]
[376189971,1753887052367,-1101.83,0.00024296,2]
[376189972,1753887052376,-460.0,0.00024296,2]
[376189973,1753887052385,-592.06,0.00024296,2]
[376189974,1753887052395,-1058.94,0.00024296,2]
[376189975,1753887052407,-154.317516,0.000243,6]
[376189976,1753887052420,-2391.75,0.00024303,7]
[376189977,1753887052429,-537.0,0.00024306,2]
[376189978,1753887052438,-269.0,0.00024312,6]
[376189979,1753887052448,-460.0,0.00024368,2]
[376189980,1753887052458,-184.95052764,0.00024378,2]
[376189981,1753887052467,-550.29,0.00024382,2]
[376189982,1753887052477,-685.88,0.00024382,2]
[376189983,1753887052488,-13618.82,0.000244,7]
[376189984,1753887052498,-1682.97,0.000244,7]
[376189985,1753887052511,-150.0,0.00024403,2]
[376189986,1753887052520,-2391.75,0.00024403,7]
[376189988,1753887052529,-299.3601861,0.00024417,11]
[376189990,1753887052539,-1200.0,0.00024426,2]
[376189992,1753887052548,-600.0,0.00024432,2]
[376189994,1753887052558,-1000.0,0.00024432,2]
[376189996,1753887052567,-153.0,0.00024434,2]
[376189998,1753887052577,-153.0,0.00024434,2]
[376190000,1753887052587,-153.0,0.00024434,2]
[376190002,1753887052604,-153.0,0.00024434,2]
[376190004,1753887052614,-153.0,0.00024434,2]
[376190006,1753887052623,-153.0,0.00024434,2]
[376190008,1753887052633,-153.0,0.00024434,2]
[376190010,1753887052643,-153.0,0.00024434,2]
[376190012,1753887052652,-153.0,0.00024434,2]
[376190014,1753887052661,-153.0,0.00024434,2]
[376190016,1753887052670,-153.0,0.00024434,2]
[376190018,1753887052679,-153.0,0.00024434,2]
[376190020,1753887052688,-153.0,0.00024434,2]
[376190022,1753887052697,-153.0,0.00024434,2]
[376190024,1753887052707,-153.0,0.00024434,2]
[376190026,1753887052716,-153.0,0.00024434,2]
[376190028,1753887052725,-306.0,0.00024434,2]
[376190030,1753887052735,-1000.0,0.00024464,2]
[376190032,1753887052746,-200.0,0.000245,2]
[376190034,1753887052760,-160.0,0.000245,7]
[376190036,1753887052770,-151.0,0.000245,9]
[376190038,1753887052779,-2391.75,0.00024503,7]
[376190040,1753887052788,-1141.11,0.00024506,2]
[376190042,1753887052797,-543.82,0.00024506,2]
[376190044,1753887052807,-631.71,0.00024506,2]
[376190046,1753887052816,-460.0,0.00024506,2]
[376190048,1753887052826,-1053.74,0.00024506,2]
[376190050,1753887052835,-460.0,0.00024506,2]
[376190052,1753887052844,-1200.0,0.00024543,2]
[376190054,1753887052854,-600.0,0.00024547,2]
[376190056,1753887052864,-693.29683238,0.0002455,2]
[376190058,1753887052873,-2146.0,0.00024553,2]
[376190060,1753887052882,-635.0,0.00024553,2]
[376190062,1753887052891,-970.0,0.00024553,2]
[376190064,1753887052901,-600.0,0.00024555,2]
[376190066,1753887052913,-1101.83,0.0002457,2]
[376190068,1753887052923,-460.0,0.0002457,2]
[376190070,1753887052933,-600.0,0.0002457,2]
[376190072,1753887052943,-592.06,0.0002457,2]
[376190074,1753887052954,-1058.94,0.0002457,2]
[376190076,1753887052964,-499.3,0.00024579,2]
[376190078,1753887052974,-1000.0,0.00024586,2]
[376190080,1753887052985,-500.0,0.00024595,2]
[376190082,1753887052995,-1000.0,0.00024599,2]
[376190084,1753887053012,-205.0,0.000246,7]
[376190086,1753887053022,-17822.48017942,0.000246,7]
[376190088,1753887053032,-153.519072,0.000246,7]
[376190090,1753887053044,-1000.0,0.00024602,2]
[376190092,1753887053055,-2391.75,0.00024603,7]
[376190094,1753887053065,-1000.0,0.00024611,2]
[376190096,1753887053076,-299.3601861,0.00024624,11]
[376190097,1753887053086,-1200.0,0.0002463,2]
[376190099,1753887053096,-1200.0,0.00024638,2]
[376190100,1753887053107,-460.0,0.00024642,2]
[376190101,1753887053118,-139.06622572,0.00024648,2]
[376190102,1753887053249,-460.0,0.00020459,2]
[376190103,1753887053266,-2312.6,0.00020661,10]
[376190104,1753887053276,-360.41764094,0.00020733,2]
[376190105,1753887053286,-460.0,0.00021493,2]
[376190106,1753887053295,-460.0,0.00021767,2]
[376190107,1753887053305,-153.84219384,0.00022041,2]
[376190108,1753887053314,-200.0,0.00024052,15]
[376190109,1753887053323,-200.0,0.00024052,15]
[376190111,1753887053334,-360.93377428,0.00024648,2]
[376190112,1753887053343,-200.0,0.00024649,2]
[376190114,1753887053352,-33032.20639094,0.0002465,2]
[376190157,1753887745899,163.559441,0.00013699,2]
[376190360,1753888232851,-266.51366233,0.00019178,2]
[376190412,1753888233384,-4733.48633767,0.00019178,2]
[376190414,1753888233405,-260.510646,0.00019239,2]
[376190416,1753888233415,-666.0,0.00019304,2]
[376190418,1753888233425,-727.80801923,0.00019741,2]
[376190420,1753888233435,-300.0,0.00019776,2]
[376190423,1753888233445,-300.0,0.00019776,2]
[376190424,1753888233455,-963.0,0.00019776,2]
[376190426,1753888233465,-460.0,0.00019777,2]
[376190428,1753888233479,-460.0,0.00019777,2]
[376190430,1753888233489,-407.91893016,0.00019777,2]
[376190432,1753888233499,-460.86123674,0.00019777,2]
[376190434,1753888233509,-460.0,0.00019777,2]
[376190436,1753888233519,-1000.0,0.00019777,2]
[376190438,1753888233529,-460.0,0.00019777,2]
[376190440,1753888233539,-414.27512553,0.00019777,2]
[376190442,1753888233550,-460.0,0.00019777,2]
[376190444,1753888233560,-460.0,0.00019777,2]
[376190446,1753888233571,-461.33540399,0.00019777,2]
[376190448,1753888233581,-500.0,0.00019777,2]
[376190450,1753888233590,-500.0,0.00019777,2]
[376190452,1753888233600,-460.0,0.00019777,2]
[376190454,1753888233610,-1073.99,0.00019777,2]
[376190456,1753888233620,-197.08358166,0.00019777,2]
[376190458,1753888233629,-460.0,0.00019777,2]
[376190460,1753888233638,-460.0,0.00019777,2]
[376190462,1753888233647,-460.0,0.00019777,2]
[376190463,1753888233657,-460.0,0.00019777,2]
[376190465,1753888233667,-460.0,0.00019777,2]
[376190467,1753888233677,-628.37,0.00019777,2]
[376190469,1753888233687,-460.0,0.00019777,2]
[376190471,1753888233696,-460.0,0.00019777,2]
[376190473,1753888233706,-462.78451953,0.00019777,2]
[376190475,1753888233716,-460.0,0.00019777,2]
[376190477,1753888233730,-460.0,0.00019777,2]
[376190479,1753888233740,-460.0,0.00019777,2]
[376190480,1753888233749,-460.0,0.00019777,2]
[376190482,1753888233759,-460.0,0.00019777,2]
[376190484,1753888233769,-460.0,0.00019777,2]
[376190486,1753888233780,-460.0,0.00019777,2]
[376190488,1753888233790,-460.0,0.00019777,2]
[376190490,1753888233799,-460.0,0.00019777,2]
[376190492,1753888233809,-460.0,0.00019777,2]
[376190494,1753888233818,-460.0,0.00019777,2]
[376190496,1753888233828,-460.0,0.00019778,2]
[376190498,1753888233838,-460.0,0.00019778,2]
[376190500,1753888233847,-460.0,0.00019778,2]
[376190502,1753888233856,-461.47427707,0.00019778,2]
[376190504,1753888233866,-460.0,0.00019778,2]
[376190506,1753888233876,-460.0,0.00019778,2]
[376190508,1753888233885,-460.0,0.00019778,2]
[376190510,1753888233894,-460.0,0.00019778,2]
[376190512,1753888233904,-460.0,0.00019778,2]
[376190514,1753888233913,-460.0,0.00019778,2]
[376190516,1753888233922,-460.0,0.00019778,2]
[376190518,1753888233932,-507.0282003,0.00019778,2]
[376190520,1753888233942,-460.0,0.00019778,2]
[376190522,1753888233951,-460.0,0.00019778,2]
[376190524,1753888233961,-460.0,0.00019778,2]
[376190526,1753888233970,-460.0,0.00019778,2]
[376190528,1753888233982,-460.0,0.00019778,2]
[376190530,1753888233992,-460.0,0.00019778,2]
[376190532,1753888234001,-460.0,0.00019778,2]
[376190548,1753888234148,-460.0,0.00019778,2]
[376190550,1753888234158,-460.0,0.00019778,2]
[376190552,1753888234168,-460.0,0.00019778,2]
[376190554,1753888234177,-460.0,0.00019778,2]
[376190556,1753888234186,-460.0,0.00019778,2]
[376190557,1753888234195,-460.0,0.00019778,2]
[376190559,1753888234205,-460.0,0.00019778,2]
[376190561,1753888234215,-460.0,0.00019778,2]
[376190563,1753888234226,-204.63119075,0.00019778,2]
[376190565,1753888234236,-460.0,0.00019778,2]
[376190567,1753888234246,-460.0,0.00019778,2]
[376190569,1753888234255,-460.0,0.00019778,2]
[376190571,1753888234266,-460.0,0.00019778,2]
[376190573,1753888234279,-460.0,0.00019778,2]
[376190575,1753888234289,-460.0,0.00019778,2]
[376190577,1753888234299,-460.0,0.00019778,2]
[376190579,1753888234310,-460.0,0.00019778,2]
[376190581,1753888234320,-460.0,0.00019778,2]
[376190583,1753888234330,-460.0,0.00019778,2]
[376190585,1753888234340,-460.0,0.00019778,2]
[376190587,1753888234351,-460.0,0.00019778,2]
[376190589,1753888234362,-460.0,0.00019778,2]
[376190591,1753888234372,-460.0,0.00019778,2]
[376190593,1753888234381,-460.0,0.00019778,2]
[376190595,1753888234391,-460.0,0.00019778,2]
[376190597,1753888234401,-460.0,0.00019778,2]
[376190599,1753888234411,-460.0,0.00019778,2]
[376190601,1753888234420,-460.0,0.00019778,2]
[376190603,1753888234430,-460.0,0.00019778,2]
[376190605,1753888234440,-460.0,0.00019778,2]
[376190607,1753888234449,-460.0,0.00019778,2]
[376190609,1753888234458,-460.0,0.00019778,2]
[376190610,1753888234468,-460.0,0.00019778,2]
[376190612,1753888234480,-460.0,0.00019778,2]
[376190614,1753888234490,-250.68309654,0.00019778,2]
[376190616,1753888234500,-491.85725015,0.00019778,2]
[376190618,1753888234509,-460.0,0.00019778,2]
[376190620,1753888234519,-460.0,0.00019778,2]
[376190622,1753888234528,-460.0,0.00019778,2]
[376190624,1753888234537,-249.33691591,0.00019778,2]
[376190626,1753888234546,-460.0,0.00019778,2]
[376190628,1753888234556,-460.0,0.00019778,2]
[376190630,1753888234565,-460.0,0.00019778,2]
[376190632,1753888234575,-460.0,0.00019778,2]
[376190634,1753888234583,-460.0,0.00019778,2]
[376190635,1753888234592,-460.0,0.00019778,2]
[376190637,1753888234601,-460.0,0.00019778,2]
[376190639,1753888234611,-460.0,0.00019778,2]
[376190641,1753888234620,-460.0,0.00019778,2]
[376190643,1753888234629,-460.0,0.00019778,2]
[376190645,1753888234638,-460.0,0.00019778,2]
[376190647,1753888234648,-460.0,0.00019778,2]
[376190649,1753888234658,-460.0,0.00019778,2]
[376190651,1753888234666,-460.0,0.00019778,2]
[376190653,1753888234676,-460.0,0.00019778,2]
[376190655,1753888234685,-460.0,0.00019778,2]
[376190657,1753888234694,-460.0,0.00019778,2]
[376190659,1753888234703,-460.0,0.00019778,2]
[376190661,1753888234712,-460.0,0.00019778,2]
[376190663,1753888234721,-460.0,0.00019778,2]
[376190665,1753888234735,-460.0,0.00019778,2]
[376190667,1753888234744,-460.0,0.00019778,2]
[376190669,1753888234753,-460.0,0.00019778,2]
[376190671,1753888234764,-460.0,0.00019778,2]
[376190673,1753888234773,-460.0,0.00019778,2]
[376190675,1753888234783,-460.0,0.00019778,2]
[376190676,1753888234792,-503.23937045,0.00019778,2]
[376190678,1753888234801,-460.0,0.00019778,2]
[376190680,1753888234810,-460.0,0.00019778,2]
[376190682,1753888234820,-460.0,0.00019778,2]
[376190684,1753888234829,-460.0,0.00019778,2]
[376190686,1753888234838,-460.0,0.00019778,2]
[376190688,1753888234847,-500.0,0.00019778,2]
[376190690,1753888234857,-460.0,0.00019778,2]
[376190692,1753888234866,-460.0,0.00019778,2]
[376190694,1753888234876,-460.0,0.00019778,2]
[376190696,1753888234886,-460.0,0.00019778,2]
[376190698,1753888234895,-460.0,0.00019778,2]
[376190700,1753888234905,-460.0,0.00019778,2]
[376190702,1753888234914,-460.0,0.00019778,2]
[376190704,1753888234924,-219.82330503,0.00019778,2]
[376190706,1753888234933,-460.0,0.00019778,2]
[376190708,1753888234942,-500.58702109,0.00019778,2]
[376190710,1753888234952,-460.0,0.00019778,2]
[376190711,1753888234961,-506.72976576,0.00019778,2]
[376190713,1753888234970,-460.0,0.00019778,2]
[376190715,1753888234981,-460.0,0.00019778,2]
[376190716,1753888234990,-460.0,0.00019778,2]
[376190717,1753888235000,-328.68323593,0.00019778,2]
[376190718,1753888235009,-460.0,0.00019778,2]
[376190719,1753888235018,-166.78602182,0.00019778,2]
[376190720,1753888235027,-460.0,0.00019778,2]
[376190721,1753888235036,-460.0,0.00019778,2]
[376190722,1753888235045,-460.0,0.00019778,2]
[376190723,1753888235054,-460.0,0.00019778,2]
[376190724,1753888235064,-460.0,0.00019778,2]
[376190725,1753888235073,-460.0,0.00019778,2]
[376190726,1753888235082,-460.0,0.00019778,2]
[376190727,1753888235092,-460.0,0.00019778,2]
[376190728,1753888235102,-460.0,0.00019778,2]
[376190729,1753888235111,-460.0,0.00019778,2]
[376190730,1753888235121,-460.0,0.00019778,2]
[376190731,1753888235131,-460.0,0.00019778,2]
[376190732,1753888235140,-460.0,0.00019778,2]
[376190733,1753888235150,-460.0,0.00019778,2]
[376190734,1753888235159,-460.0,0.00019778,2]
[376190735,1753888235168,-460.0,0.00019778,2]
[376190736,1753888235177,-460.0,0.00019778,2]
[376190737,1753888235186,-460.0,0.00019778,2]
[376190738,1753888235196,-460.0,0.00019778,2]
[376190739,1753888235205,-460.0,0.00019778,2]
[376190740,1753888235215,-460.0,0.00019778,2]
[376190741,1753888235224,-460.0,0.00019778,2]
[376190742,1753888235234,-460.0,0.00019778,2]
[376190743,1753888235243,-460.0,0.00019778,2]
[376190744,1753888235252,-460.0,0.00019778,2]
[376190745,1753888235261,-460.0,0.00019778,2]
[376190746,1753888235273,-460.0,0.00019778,2]
[376190747,1753888235283,-460.0,0.00019778,2]
[376190748,1753888235293,-460.0,0.00019778,2]
[376190749,1753888235303,-460.0,0.00019778,2]
[376190751,1753888235312,-186.48385721,0.00019778,2]
[376190753,1753888235322,-460.0,0.00019778,2]
[376190755,1753888235331,-460.0,0.00019778,2]
[376190757,1753888235341,-460.0,0.00019778,2]
[376190759,1753888235352,-460.0,0.00019778,2]
[376190761,1753888235362,-460.0,0.00019778,2]
[376190763,1753888235372,-460.0,0.00019778,2]
[376190765,1753888235381,-426.91548351,0.00019778,2]
[376190767,1753888235390,-460.0,0.00019778,2]
[376190768,1753888235399,-460.0,0.00019778,2]
[376190770,1753888235408,-460.0,0.00019778,2]
[376190772,1753888235417,-460.0,0.00019778,2]
[376190774,1753888235426,-460.0,0.00019778,2]
[376190776,1753888235435,-460.0,0.00019778,2]
[376190778,1753888235445,-460.0,0.00019778,2]
[376190780,1753888235454,-460.0,0.00019778,2]
[376190782,1753888235463,-460.0,0.00019778,2]
[376190784,1753888235472,-460.0,0.00019778,2]
[376190786,1753888235483,-460.0,0.00019778,2]
[376190788,1753888235492,-500.0,0.00019779,2]
[376190790,1753888235501,-216.14611358,0.00019779,2]
[376190792,1753888235511,-466.51008662,0.00019779,2]
[376190794,1753888235521,-460.0,0.00019779,2]
[376190796,1753888235530,-460.0,0.00019779,2]
[376190798,1753888235539,-460.0,0.00019779,2]
[376190800,1753888235549,-460.0,0.00019779,2]
[376190802,1753888235558,-460.0,0.00019779,2]
[376190804,1753888235568,-460.0,0.00019779,2]
[376190806,1753888235577,-460.0,0.00019779,2]
[376190808,1753888235587,-460.0,0.00019779,2]
[376190810,1753888235596,-460.0,0.00019779,2]
[376190812,1753888235605,-460.0,0.00019779,2]
[376190814,1753888235615,-460.0,0.00019779,2]
[376190816,1753888235624,-460.0,0.00019779,2]
[376190818,1753888235634,-469.80587163,0.00019779,2]
[376190820,1753888235643,-460.0,0.00019779,2]
[376190822,1753888235653,-460.0,0.00019779,2]
[376190824,1753888235663,-460.0,0.00019779,2]
[376190826,1753888235672,-460.0,0.00019779,2]
[376190828,1753888235681,-460.0,0.00019779,2]
[376190830,1753888235690,-460.0,0.00019779,2]
[376190832,1753888235700,-460.0,0.00019779,2]
[376190834,1753888235709,-460.0,0.00019779,2]
[376190835,1753888235718,-460.0,0.00019779,2]
[376190837,1753888235728,-460.0,0.00019779,2]
[376190839,1753888235737,-460.0,0.00019779,2]
[376190841,1753888235746,-460.0,0.00019779,2]
[376190843,1753888235755,-460.0,0.00019779,2]
[376190845,1753888235765,-460.0,0.00019779,2]
[376190847,1753888235774,-460.0,0.00019779,2]
[376190849,1753888235784,-460.0,0.00019779,2]
[376190851,1753888235793,-460.0,0.00019779,2]
[376190853,1753888235803,-460.0,0.00019779,2]
[376190855,1753888235813,-460.0,0.00019779,2]
[376190857,1753888235822,-460.0,0.00019779,2]
[376190860,1753888235831,-460.0,0.00019779,2]
[376190862,1753888235841,-460.0,0.00019779,2]
[376190863,1753888235850,-460.0,0.00019779,2]
[376190865,1753888235859,-460.0,0.00019779,2]
[376190867,1753888235869,-460.0,0.00019779,2]
[376190869,1753888235877,-460.0,0.00019779,2]
[376190871,1753888235887,-460.0,0.00019779,2]
[376190873,1753888235896,-500.0,0.0001995,2]
[376190875,1753888235906,-1231.22251063,0.00019951,2]
[376190877,1753888235915,-231.43925844,0.00019951,2]
[376190879,1753888235925,-160.0,0.00019951,2]
[376190882,1753888235936,-160.0,0.00019951,2]
[376190884,1753888235945,-160.0,0.00019951,2]
[376190885,1753888235955,-500.0,0.00019973,2]
[376190887,1753888235964,-188.16,0.00019989,2]
[376190889,1753888235973,-100000.0,0.0001999,2]
[376190891,1753888235985,-461.07185386,0.00020051,2]
[376190893,1753888235995,-460.0,0.00020051,2]
[376190895,1753888236005,-1073.99,0.00020051,2]
[376190897,1753888236014,-460.0,0.00020051,2]
[376190899,1753888236023,-460.0,0.00020051,2]
[376190901,1753888236033,-460.0,0.00020051,2]
[376190903,1753888236042,-460.0,0.00020051,2]
[376190905,1753888236051,-628.37,0.00020051,2]
[376190907,1753888236060,-460.0,0.00020051,2]
[376190909,1753888236070,-460.0,0.00020051,2]
[376190911,1753888236079,-460.0,0.00020051,2]
[376190913,1753888236089,-462.12399268,0.00020051,2]
[376190915,1753888236100,-460.0,0.00020051,2]
[376190917,1753888236110,-460.0,0.00020051,2]
[376190919,1753888236120,-460.0,0.00020051,2]
[376190921,1753888236129,-460.0,0.00020051,2]
[376190923,1753888236139,-460.0,0.00020051,2]
[376190925,1753888236148,-460.0,0.00020051,2]
[376190927,1753888236158,-460.0,0.00020052,2]
[376190929,1753888236167,-460.0,0.00020052,2]
[376190931,1753888236176,-460.0,0.00020052,2]
[376190934,1753888236186,-460.0,0.00020052,2]
[376190935,1753888236196,-460.0,0.00020052,2]
[376190937,1753888236205,-460.0,0.00020052,2]
[376190940,1753888236215,-460.0,0.00020052,2]
[376190942,1753888236225,-460.0,0.00020052,2]
[376190943,1753888236236,-460.0,0.00020052,2]
[376190945,1753888236245,-460.0,0.00020052,2]
[376190947,1753888236254,-460.0,0.00020052,2]
[376190949,1753888236265,-460.0,0.00020052,2]
[376190951,1753888236282,-460.0,0.00020052,2]
[376190953,1753888236292,-460.0,0.00020052,2]
[376190955,1753888236301,-460.0,0.00020052,2]
[376190957,1753888236312,-460.0,0.00020052,2]
[376190959,1753888236321,-460.0,0.00020052,2]
[376190961,1753888236331,-511.11175927,0.00020052,2]
[376190963,1753888236340,-465.79199405,0.00020052,2]
[376190965,1753888236350,-403.7463944,0.00020052,2]
[376190967,1753888236360,-460.0,0.00020052,2]
[376190969,1753888236370,-242.04245329,0.00020052,2]
[376190971,1753888236379,-474.08849572,0.00020052,2]
[376190973,1753888236389,-460.0,0.00020052,2]
[376190975,1753888236398,-460.0,0.00020052,2]
[376190977,1753888236407,-461.11620815,0.00020052,2]
[376190979,1753888236416,-460.0,0.00020052,2]
[376190981,1753888236425,-460.0,0.00020052,2]
[376190983,1753888236435,-460.0,0.00020052,2]
[376190985,1753888236445,-460.0,0.00020052,2]
[376190987,1753888236455,-276.56091141,0.00020052,2]
[376190990,1753888236465,-460.0,0.00020052,2]
[376190991,1753888236475,-460.0,0.00020052,2]
[376190993,1753888236486,-460.0,0.00020052,2]
[376190995,1753888236500,-460.0,0.00020052,2]
[376190998,1753888236510,-460.0,0.00020052,2]
[376190999,1753888236519,-460.0,0.00020052,2]
[376191001,1753888236529,-460.0,0.00020052,2]
[376191004,1753888236538,-460.0,0.00020052,2]
[376191006,1753888236548,-460.0,0.00020052,2]
[376191007,1753888236558,-1112.31,0.00020052,2]
[376191009,1753888236568,-460.0,0.00020052,2]
[376191011,1753888236578,-460.0,0.00020052,2]
[376191013,1753888236587,-460.0,0.00020052,2]
[376191015,1753888236597,-460.0,0.00020052,2]
[376191018,1753888236607,-460.0,0.00020052,2]
[376191020,1753888236616,-460.0,0.00020052,2]
[376191022,1753888236625,-460.0,0.00020052,2]
[376191023,1753888236634,-460.0,0.00020052,2]
[376191025,1753888236643,-460.0,0.00020052,2]
[376191027,1753888236652,-460.0,0.00020052,2]
[376191029,1753888236661,-488.47468762,0.00020052,2]
[376191032,1753888236671,-189.89983333,0.00020052,2]
[376191033,1753888236680,-460.0,0.00020052,2]
[376191035,1753888236689,-460.0,0.00020052,2]
[376191037,1753888236699,-460.0,0.00020052,2]
[376191039,1753888236709,-460.0,0.00020052,2]
[376191042,1753888236719,-460.0,0.00020052,2]
[376191044,1753888236730,-460.0,0.00020052,2]
[376191046,1753888236739,-460.0,0.00020052,2]
[376191058,1753888236846,-494.7648587,0.00020052,2]
[376191060,1753888236855,-460.0,0.00020052,2]
[376191062,1753888236865,-460.0,0.00020052,2]
[376191064,1753888236874,-460.0,0.00020052,2]
[376191066,1753888236883,-460.0,0.00020052,2]
[376191068,1753888236892,-460.0,0.00020052,2]
[376191070,1753888236901,-460.0,0.00020052,2]
[376191072,1753888236911,-933.64,0.00020052,2]
[376191074,1753888236921,-460.0,0.00020052,2]
[376191076,1753888236930,-460.0,0.00020052,2]
[376191078,1753888236939,-572.82,0.00020052,2]
[376191080,1753888236948,-460.0,0.00020052,2]
[376191082,1753888236957,-460.0,0.00020052,2]
[376191084,1753888236967,-474.51643743,0.00020052,2]
[376191086,1753888236977,-460.0,0.00020052,2]
[376191088,1753888236986,-460.0,0.00020052,2]
[376191090,1753888236995,-465.19968399,0.00020052,2]
[376191092,1753888237004,-460.0,0.00020052,2]
[376191094,1753888237013,-460.0,0.00020052,2]
[376191096,1753888237022,-460.0,0.00020052,2]
[376191098,1753888237031,-460.0,0.00020052,2]
[376191100,1753888237040,-460.0,0.00020052,2]
[376191102,1753888237050,-460.0,0.00020052,2]
[376191104,1753888237059,-460.0,0.00020052,2]
[376191106,1753888237068,-460.0,0.00020052,2]